[Event "Anderssen Memorial Open-A 2020"]
[Site "Wroclaw"]
[Date "2020.08.08"]
[Round "9.14"]
[White "Peglau, Mirjam"]
[Black "Peglau, Dora"]
[Result "1-0"]
[ECO "C42"]
[WhiteElo "1851"]
[BlackElo "1704"]
[Annotator "NA RC"]
[PlyCount "147"]
[EventDate "2020.08.01"]
[EventType "swiss"]
[EventCountry "POL"]
[SourceTitle "playchess.com"]
[Source "ChessBase"]
[SourceQuality "1"]
[TimeControl "40/5400+15:1800+30"]

{[%evp 8,101,39,29,25,23,28,25,29,27,41,31,42,40,43,0,13,-5,0,-4,5,2,8,0,0,-37,-9,-32,0,-13,3,-2,-7,-17,10,22,56,58,43,39,52,26,29,20,31,11,35,24,32767,32767,32767,32767,32767,32767,32767,32767,32767,6,9,0,4,0,3,2,6,2,0,8,99,35,85,115,93,93,105,73,256,32767,256,32767,32767,418,312,485,505,502,412,618,2045,5893,2167,427,573,2047,627,12836]} 1. e4 {[%emt 0:00:00]} e5 {[%emt 0:00:00]} 2. Nf3 {[%emt 0:00:00]} Nf6 {[%emt 0:00:00]} 3. Nxe5 {[%emt 0:05:05]} d6 {[%emt 0:00:00]} 4. Nf3 {[%emt 0:01:07]} Nxe4 {[%emt 0:00:29]} 5. Bd3 {[%emt 0:01:03]} Nf6 {[%emt 0:01:57]} 6. c3 {[%emt 0:01:47] C42: Petroff Defence: 3 Nxe5 and unusual White 3rd moves.} d5 {[%emt 0:02:17]} 7. O-O {[%emt 0:00:23]} Bg4 {[%emt 0:01:09]} 8. Bc2 {[%emt 0:00:37]} Nbd7 {[%emt 0:01:58]} 9. d4 {[%emt 0:01:23]} Be7 {[%emt 0:01:52] [#]} 10. Qd3 $146 {[%emt 0:04:07]} ({Predecessor:} 10. Bf4 O-O 11. Qd3 Ne4 12. Re1 Bf5 13. Qe3 Ndf6 14. h3 Nh5 15. Bh2 Bg6 16. c4 {1-0 (33) Samoun,F (1870)-Giraud,A (1710) Calvi 2005}) 10... Bh5 {[%emt 0:03:26]} 11. Nh4 {[%emt 0:12:41]} O-O {[%emt 0:03:12]} 12. Nf5 {[%emt 0:02:37]} Re8 {[%emt 0:01:15]} 13. Bg5 {[%emt 0:09:00]} Bg6 {[%emt 0:02:56]} 14. Nd2 {[%emt 0:02:58]} c6 {[%emt 0:05:11]} 15. Nf3 {[%emt 0:04:11]} Bd6 {[%emt 0:03:22]} 16. h3 {[%emt 0:09:03]} Qc7 {[%emt 0:00:53]} 17. N3h4 {[%emt 0:00:36]} Bf4 {[%emt 0:01:19]} 18. Bxf4 {[%emt 0:03:35]} Qxf4 {[%emt 0:02:38]} 19. Nxg6 {[%emt 0:00:21]} hxg6 {[%emt 0:00:00]} 20. Ng3 {[%emt 0:00:00]} Ne4 {[%emt 0:01:05]} 21. Nxe4 {[%emt 0:02:01]} Qxe4 {[%emt 0:00:20]} 22. Qxe4 {[%emt 0:00:12]} dxe4 {[%emt 0:00:00]} 23. Rfe1 {[%emt 0:00:05]} f5 {[%emt 0:00:00]} 24. Re2 {[%emt 0:01:47]} Nf6 {[%emt 0:00:41]} 25. Rae1 {[%emt 0:00:04]} Rad8 {[%emt 0:02:03]} 26. f3 {[%emt 0:00:42]} exf3 {[%emt 0:00:22]} 27. Rxe8+ {[%emt 0:00:31]} Rxe8 {[%emt 0:00:00]} 28. Rxe8+ {[%emt 0:00:00]} Nxe8 {[%emt 0:00:00]} 29. gxf3 {[%emt 0:00:00]} Kf7 {[%emt 0:00:01]} 30. Kf2 {[%emt 0:00:00]} Nf6 {[%emt 0:00:05]} 31. Bb3+ {[%emt 0:02:04]} Ke7 {[%emt 0:01:31]} 32. Ke3 {[%emt 0:01:31]} g5 {[%emt 0:02:05]} 33. f4 {[%emt 0:04:42]} g4 {[%emt 0:01:42]} 34. hxg4 {[%emt 0:00:00]} Nxg4+ {[%emt 0:04:20]} 35. Kf3 {[%emt 0:01:35]} Nf6 {[%emt 0:01:12]} 36. Bd1 {[%emt 0:02:06]} Kd6 {[%emt 0:01:36]} 37. Kg3 {[%emt 0:02:52]} c5 {[%emt 0:01:18]} 38. dxc5+ {[%emt 0:01:23]} Kxc5 {[%emt 0:01:21]} 39. Kh4 {[%emt 0:00:48]} Nd5 {[%emt 0:10:40]} 40. Kg5 {[%emt 0:00:00]} b5 {[%emt 0:00:00]} 41. Be2 {[%emt 0:17:00]} g6 $2 {[%emt 0:20:58]} ({Better is} 41... b4 $14) 42. Bf3 {[%emt 0:04:11]} Ne7 {[%emt 0:02:26]} 43. Kf6 {[%emt 0:00:25]} Kd6 {[%emt 0:00:25]} 44. b3 {[%emt 0:02:48]} Kd7 {[%emt 0:01:59]} 45. c4 {[%emt 0:01:29]} bxc4 {[%emt 0:00:53]} 46. bxc4 {[%emt 0:00:01]} a5 {[%emt 0:01:39]} 47. Bh1 {[%emt 0:03:30]} (47. a4 $142 Nc8 48. Kxg6) 47... Kd6 {[%emt 0:00:58] [#]} (47... a4 $142 48. a3 Nc8 49. Kxg6 Nd6) 48. c5+ $1 {[%emt 0:00:31]} Kd7 {[%emt 0:00:10]} 49. Bg2 {[%emt 0:01:02]} a4 {[%emt 0:00:26]} 50. a3 {[%emt 0:02:33]} Ke8 {[%emt 0:01:30]} 51. c6 $18 {[%emt 0:00:57]} Kd8 {[%emt 0:00:10]} 52. Bf3 {[%emt 0:00:30]} Ke8 {[%emt 0:00:13]} 53. Bd1 {[%emt 0:02:07]} Nxc6 {[%emt 0:00:01]} 54. Bxa4 {[%emt 0:00:07]} Kd7 {[%emt 0:00:12]} 55. Kxg6 {[%emt 0:00:18]} Kd6 {[%emt 0:00:05]} 56. Bxc6 {[%emt 0:00:06]} Kxc6 {[%emt 0:00:04]} 57. Kxf5 {[%emt 0:00:06]} Kb5 {[%emt 0:00:34]} 58. Ke5 {[%emt 0:00:39]} Ka4 {[%emt 0:00:07]} 59. f5 {[%emt 0:00:12]} Kxa3 {[%emt 0:00:03]} 60. f6 {[%emt 0:00:05]} Kb4 {[%emt 0:00:04]} 61. f7 {[%emt 0:00:04]} Kc4 {[%emt 0:00:14]} 62. f8=Q {[%emt 0:00:32]} Kd3 {[%emt 0:00:27]} 63. Qf4 {[%emt 0:00:10]} Kc3 {[%emt 0:00:13]} 64. Qd4+ {[%emt 0:00:05]} Kc2 {[%emt 0:00:08]} 65. Qe3 {[%emt 0:00:09]} Kb2 {[%emt 0:00:06]} 66. Qd3 {[%emt 0:00:05]} Kc1 {[%emt 0:00:11]} 67. Kd4 {[%emt 0:00:11]} Kb2 {[%emt 0:00:01]} 68. Qc3+ {[%emt 0:00:08]} Kb1 {[%emt 0:01:30]} 69. Qd2 {[%emt 0:00:16]} Ka1 {[%emt 0:00:27]} 70. Kc3 {[%emt 0:00:06]} Kb1 {[%emt 0:00:12]} 71. Qc2+ {[%emt 0:00:43]} Ka1 {[%emt 0:00:04]} 72. Qc1+ {[%emt 0:00:31]} Ka2 {[%emt 0:00:05]} 73. Qc2+ {[%emt 0:00:20]} Ka1 {[%emt 0:00:08]} 74. Qb2# 1-0